Cogmind - Beta 12 --- EXPLORER MODE // 2023.11.02 @ 03:31:20 Player: Shin Result: Destroyed by S-27 Virus with Autogun Performance ------------- Evolutions (5) 2500 Regions Visited (6) 1200 Robots Destroyed (0) 0 Value Destroyed (0) 0 Prototype IDs (0) 0 Alien Tech Used (0) 0 Bonus (1987) 1987 TOTAL SCORE: 5687 Bonus ------- Pacifist 1987 Cogmind --------- Core Integrity 0/1000 Matter 300/300 Energy 98/100 System Corruption 0% Temperature Cool (0) Movement Core (50) Location -5/Factory Parts ------- > --- POWER (1) -------- (None) > --- PROPULSION (2) --- (None) > --- UTILITY (13) ----- (None) > --- WEAPON (2) ------- (None) > --- INVENTORY (5) ---- (None) Peak State ------------ None Favorites ----------- Power None Propulsion None Utility None Weapon None Build | -11 -10 -9 -8 -7 -6 -5 ------- Run | Jun Mat Mat Mat Fac Fac Fac Slots Evolved 11 | . 1 2 2 2 2 2 Power . | . . . . . . . Propulsion . | . . . . . . . Utility 11 | . 1 2 2 2 2 2 Weapon . | . . . . . . . Parts Attached . | . . . . . . . Power . | . . . . . . . Engine . | . . . . . . . Core . | . . . . . . . Reactor . | . . . . . . . Propulsion . | . . . . . . . Treads . | . . . . . . . Leg . | . . . . . . . Wheel . | . . . . . . . Hover . | . . . . . . . Flight . | . . . . . . . Utility . | . . . . . . . Device . | . . . . . . . Storage . | . . . . . . . Processor . | . . . . . . . Hackware . | . . . . . . . Protection . | . . . . . . . Artifact . | . . . . . . . Weapon . | . . . . . . . Energy Gun . | . . . . . . . Energy Cannon . | . . . . . . . Ballistic Gun . | . . . . . . . Ballistic Cannon . | . . . . . . . Launcher . | . . . . . . . Special Weapon . | . . . . . . . Impact Weapon . | . . . . . . . Slashing Weapon . | . . . . . . . Piercing Weapon . | . . . . . . . Special Melee Weapon . | . . . . . . . Unidentified Prototypes . | . . . . . . . Parts Lost . | . . . . . . . Power . | . . . . . . . Propulsion . | . . . . . . . Utility . | . . . . . . . Weapon . | . . . . . . . Highest Loss Streak . | . . . . . . . To Critical Strikes . | . . . . . . . Average Slot Usage (%) . | . . . . . . . Naked Turns 644 | . 28 148 89 47 93 239 Heaviest Build . | . . . . . . . Greatest Support 3 | 3 3 3 3 3 3 3 Greatest Overweight (x) . | . . . . . . . Average Overweight (x) . | . . . . . . . Largest Inventory Capacity 5 | 5 5 5 5 5 5 5 Average Capacity 5 | 5 5 5 5 5 5 5 Most Carried 4 | 4 . . . . . . Average Carried . | 2 . . . . . . Final Capacity 5 | 5 5 5 5 5 5 5 Final Carried . | . . . . . . . Class Distribution -------------------- 100% | Hacker-Mutant Dominant Class ---------------- Hacker-Mutant | -10/Materials Hacker-Mutant | -9/Materials Hacker-Mutant | -8/Materials Hacker-Mutant | -7/Factory Hacker-Mutant | -6/Factory Hacker-Mutant | -5/Factory Resources | -11 -10 -9 -8 -7 -6 -5 ----------- Run | Jun Mat Mat Mat Fac Fac Fac Matter Collected 200 | 200 . . . . . . Remotely . | . . . . . . . Salvage Created . | . . . . . . . Parts . | . . . . . . . Haulers Intercepted . | . . . . . . . Recyclers Shooed . | . . . . . . . Parts Field Recycled . | . . . . . . . Retrieved Matter . | . . . . . . . Parts Self-Destructed . | . . . . . . . Prevented . | . . . . . . . Kills | -11 -10 -9 -8 -7 -6 -5 ------- Run | Jun Mat Mat Mat Fac Fac Fac Combat Hostiles Destroyed . | . . . . . . . Classes Destroyed . | . . . . . . . Best Kill Streak . | . . . . . . . Combat Bots Only . | . . . . . . . Max Kills in Single Turn . | . . . . . . . Gunslinging . | . . . . . . . Exploded . | . . . . . . . Melee . | . . . . . . . Uniques/NPCs Destroyed . | . . . . . . . Combat | -11 -10 -9 -8 -7 -6 -5 -------- Run | Jun Mat Mat Mat Fac Fac Fac Damage Taken 1393 | . . 91 123 66 110 1003 Core 1393 | . . 91 123 66 110 1003 Absorbed by Shields . | . . . . . . . Core Remaining (%) 88 | 100 100 77 77 90 87 . Volleys Fired . | . . . . . . . Largest . | . . . . . . . Hottest . | . . . . . . . Shots Fired . | . . . . . . . Gun . | . . . . . . . Cannon . | . . . . . . . Launcher . | . . . . . . . Special . | . . . . . . . Kinetic . | . . . . . . . Thermal . | . . . . . . . Explosive . | . . . . . . . Electromagnetic . | . . . . . . . Robot Hit Streak . | . . . . . . . Robot Miss Streak . | . . . . . . . Penetration Max . | . . . . . . . Secondary Targets . | . . . . . . . Shots Hit Robots . | . . . . . . . Core Hits 4 | . . 1 . 1 . 2 Critical Kills . | . . . . . . . Critical Parts Destroyed . | . . . . . . . Critical Strikes . | . . . . . . . Melee Attacks . | . . . . . . . Impact . | . . . . . . . Slashing . | . . . . . . . Piercing . | . . . . . . . Sneak Attacks . | . . . . . . . Combat Hostiles . | . . . . . . . Follow-up Attacks . | . . . . . . . Damage Inflicted 66 | . . 17 2 14 . 33 Guns . | . . . . . . . Cannons . | . . . . . . . Explosions . | . . . . . . . Melee . | . . . . . . . Ramming 66 | . . 17 2 14 . 33 Kinetic . | . . . . . . . Thermal . | . . . . . . . Explosive . | . . . . . . . Electromagnetic . | . . . . . . . Impact . | . . . . . . . Slashing . | . . . . . . . Piercing . | . . . . . . . Highest Corruption 2 | . . . 2 . . . Average Corruption 1 | . . . 1 . . . Corruption Purged . | . . . . . . . Corruption Blocked . | . . . . . . . Overload Shots . | . . . . . . . Overflow Damage . | . . . . . . . Projectiles . | . . . . . . . Explosions . | . . . . . . . Melee . | . . . . . . . Knockbacks . | . . . . . . . Impact . | . . . . . . . Kinetic . | . . . . . . . Secondary . | . . . . . . . Self-Inflicted Damage 30 | . . 8 1 6 . 15 Shots . | . . . . . . . Rammed 16 | . . 5 1 4 . 6 Targets Rammed 16 | . . 5 1 4 . 6 Kicked . | . . . . . . . Crushed . | . . . . . . . Highest Temperature . | . . . . . . . Average Temperature . | . . . . . . . Received Heat Transfer 618 | . . 24 99 27 99 369 Siege Activations . | . . . . . . . Robots Corrupted . | . . . . . . . Combat Hostiles . | . . . . . . . Parts Fried . | . . . . . . . Impact Corruptions . | . . . . . . . Robots Melted . | . . . . . . . Combat Hostiles . | . . . . . . . Parts Melted . | . . . . . . . Heat Transferred . | . . . . . . . Parts Sabotaged . | . . . . . . . Parts Stolen . | . . . . . . . Parts Stripped . | . . . . . . . Power Chain Reactions . | . . . . . . . Missiles Intercepted . | . . . . . . . Alert | -11 -10 -9 -8 -7 -6 -5 ------- Run | Jun Mat Mat Mat Fac Fac Fac Peak Influence 255 | . 19 120 99 77 59 255 Initial 36 | . . 5 36 32 27 21 Average 71 | . 8 51 70 45 46 106 Maximum Alert Level 1 | . . . . . . 1 Low Security (%) 93 | 100 100 100 100 100 100 81 Level 1 6 | . . . . . . 18 Level 2 . | . . . . . . . Level 3 . | . . . . . . . Level 4 . | . . . . . . . Level 5 . | . . . . . . . High Security . | . . . . . . . Max Security . | . . . . . . . Squads Dispatched 5 | . . . 3 1 . 1 Investigation 3 | . . . 3 . . . Extermination . | . . . . . . . Reinforcement 2 | . . . . 1 . 1 Assault . | . . . . . . . Garrison . | . . . . . . . Intercept . | . . . . . . . Searches Triggered . | . . . . . . . Construction Impeded . | . . . . . . . Haulers Reinforced . | . . . . . . . Active Scanning Responses . | . . . . . . . Cargo Convoy Interrupts . | . . . . . . . Stealth | -11 -10 -9 -8 -7 -6 -5 --------- Run | Jun Mat Mat Mat Fac Fac Fac Distress Signals 4 | . . 2 1 . . 1 Communications Jammed . | . . . . . . . Distress Signals . | . . . . . . . Times Spotted 58 | . 1 7 12 7 6 25 Peak Tracking Total 15 | . 1 5 10 6 6 15 Tactical Retreats 8 | . . 3 . 1 . 4 Traps | -11 -10 -9 -8 -7 -6 -5 ------- Run | Jun Mat Mat Mat Fac Fac Fac Traps Triggered 2 | . . . 2 . . . Indirectly . | . . . . . . . Trap Hack Attempts . | . . . . . . . Triggered . | . . . . . . . Disarmed . | . . . . . . . Reprogrammed . | . . . . . . . Reused . | . . . . . . . Traps Extracted . | . . . . . . . Installed . | . . . . . . . Triggered . | . . . . . . . Machines | -11 -10 -9 -8 -7 -6 -5 ---------- Run | Jun Mat Mat Mat Fac Fac Fac Machines Disabled . | . . . . . . . Max in Single Turn . | . . . . . . . Machines Repaired . | . . . . . . . Machines Sabotaged . | . . . . . . . Overloaded Fab Kills . | . . . . . . . Hacking | -11 -10 -9 -8 -7 -6 -5 --------- Run | Jun Mat Mat Mat Fac Fac Fac Machines Accessed 13 | . 1 3 4 . 2 3 Terminals 13 | . 1 3 4 . 2 3 Fabricators . | . . . . . . . Repair Stations . | . . . . . . . Recycling Units . | . . . . . . . Scanalyzers . | . . . . . . . Garrison Access . | . . . . . . . Total Hacks 35 | . 5 6 11 . 4 9 Successful 15 | . 2 3 3 . 3 4 Failed 20 | . 3 3 8 . 1 5 Catastrophic 4 | . . 1 3 . . . Database Lockouts . | . . . . . . . Manual 26 | . 5 4 10 . 2 5 Terminals 35 | . 5 6 11 . 4 9 Fabricators . | . . . . . . . Repair Stations . | . . . . . . . Recycling Units . | . . . . . . . Scanalyzers . | . . . . . . . Garrison Access . | . . . . . . . Terminal Hacks 14 | . 2 3 2 . 3 4 Level Access Points 4 | . 1 1 . . 1 1 Machine Index 1 | . . . . . . 1 Terminal Index 6 | . 1 1 2 . 1 1 Alert Level 1 | . . . . . . 1 Locate Traps 1 | . . . . . 1 . Zone Layout 1 | . . 1 . . . . Fabricator Hacks . | . . . . . . . Repair Station Hacks . | . . . . . . . Recycling Unit Hacks . | . . . . . . . Scanalyzer . | . . . . . . . Garrison Access Hacks . | . . . . . . . Unauthorized Hacks 1 | . . . 1 . . . Terminals 1 | . . . 1 . . . Assimilate 1 | . . . 1 . . . Fabricators . | . . . . . . . Repair Stations . | . . . . . . . Recycling Units . | . . . . . . . Scanalyzers . | . . . . . . . Garrison Access . | . . . . . . . Data Cores Recovered . | . . . . . . . Used . | . . . . . . . Hacking Detections 11 | . . 2 4 . 2 3 Full Trace Events 5 | . . 1 4 . . . Feedback Events 1 | . . . 1 . . . Corruption 1 | . . . 1 . . . Feedback Blocked . | . . . . . . . Robot Schematics Acquired . | . . . . . . . Robots Built . | . . . . . . . Authchips . | . . . . . . . Time . | . . . . . . . Total Robot Build Rating . | . . . . . . . Part Schematics Acquired . | . . . . . . . Parts Built . | . . . . . . . Authchips . | . . . . . . . Time . | . . . . . . . Total Part Build Rating . | . . . . . . . Parts Repaired . | . . . . . . . Time . | . . . . . . . Parts Recycled . | . . . . . . . Recycled Matter . | . . . . . . . Retrieved Matter . | . . . . . . . Retrieved Components . | . . . . . . . Parts Scanalyzed . | . . . . . . . Part Schematics Acquired . | . . . . . . . Parts Damaged . | . . . . . . . Bothacking | -11 -10 -9 -8 -7 -6 -5 ------------ Run | Jun Mat Mat Mat Fac Fac Fac Used RIF Installer . | . . . . . . . Robots Hacked . | . . . . . . . Non-combat . | . . . . . . . Combat . | . . . . . . . Robot Hacks Applied . | . . . . . . . Relay Couplers Released . | . . . . . . . Fabnet Peak Effective % . | . . . . . . . Robots Rewired . | . . . . . . . Allies Hacked . | . . . . . . . Hacks Repelled . | . . . . . . . Allies | -11 -10 -9 -8 -7 -6 -5 -------- Run | Jun Mat Mat Mat Fac Fac Fac Total Allies . | . . . . . . . Largest Group . | . . . . . . . Highest-Rated Group . | . . . . . . . Highest-Rated Ally . | . . . . . . . Total Orders . | . . . . . . . Ally Attacks . | . . . . . . . Total Damage . | . . . . . . . Kills . | . . . . . . . Allies Corrupted . | . . . . . . . Allies Melted . | . . . . . . . Intel | -11 -10 -9 -8 -7 -6 -5 ------- Run | Jun Mat Mat Mat Fac Fac Fac Robot Analysis Total . | . . . . . . . Derelict Logs Recovered . | . . . . . . . Drone Launches . | . . . . . . . Drone Recoveries . | . . . . . . . Exploration | -11 -10 -9 -8 -7 -6 -5 ------------- Run | Jun Mat Mat Mat Fac Fac Fac Turns Passed 647 | 3 28 148 89 47 93 239 Spaces Moved 1216 | 1 56 276 172 85 186 440 Core 1216 | 1 56 276 172 85 186 440 Treads . | . . . . . . . Legs . | . . . . . . . Wheels . | . . . . . . . Hover . | . . . . . . . Flight . | . . . . . . . Fastest Speed 50 | 50 50 50 50 50 50 50 Average Speed 50 | 50 50 50 50 50 50 50 Slowest Speed 50 | 50 50 50 50 50 50 50 Overloaded Moves . | . . . . . . . Propulsion Burnouts . | . . . . . . . Robots Hopped . | . . . . . . . Cave-ins Triggered . | . . . . . . . Exploration Rate (%) 14 | 2 15 25 24 5 10 17 Regions Visited 6 Branch Regions . Pre-discovered Areas . | . . . . . . . Known Exits Taken 6 | 1 1 1 1 1 1 . Unknown Exits Taken . | . . . . . . . Scrap Searched . | . . . . . . . Spaces Dug . | . . . . . . . Terrain Destroyed . | . . . . . . . Melee . | . . . . . . . Projectile . | . . . . . . . AOE . | . . . . . . . Terrain Rammed . | . . . . . . . Walls Destroyed . | . . . . . . . Machines Disabled . | . . . . . . . Actions | -11 -10 -9 -8 -7 -6 -5 --------- Run | Jun Mat Mat Mat Fac Fac Fac Total 1251 | 5 55 285 174 88 185 459 Wait 20 | . . 5 2 . . 13 Move 1210 | . 55 275 171 84 185 440 Hop . | . . . . . . . Pick Up . | . . . . . . . Fast Attach . | . . . . . . . Attach . | . . . . . . . Detach . | . . . . . . . Swap . | . . . . . . . Drop 5 | 5 . . . . . . Fire . | . . . . . . . Melee . | . . . . . . . Ram 16 | . . 5 1 4 . 6 Kick . | . . . . . . . Crush . | . . . . . . . Escape Stasis . | . . . . . . . Rewire . | . . . . . . . Trap . | . . . . . . . Miscellaneous . | . . . . . . . Route ------- -11/Junkyard -10/Materials (discovered 3 exits: *Mat x3) -9/Materials (discovered 3 exits: *Mat x3) -8/Materials -7/Factory -6/Factory (discovered 5 exits: *Fac x4 / *Low) -5/Factory (discovered 5 exits: Fac x4 / *Upp) History --------- Turn | Location | Event 1 | -11/Junkyard | Released all parts (7) 4 | -11/Junkyard | Identified exit to Materials 4 | -11/Junkyard | Discovered exit to Materials (range 0) 4 | -11/Junkyard | Entered Materials 4 | -10/Materials | Evolved 1 slot: Utility x1 14 | -10/Materials | Identified exit to Materials 32 | -10/Materials | Entered another Materials area 32 | -9/Materials | Evolved 2 slots: Utility x2 122 | -9/Materials | Identified exit to Materials 180 | -9/Materials | Entered another Materials area 180 | -8/Materials | Evolved 2 slots: Utility x2 265 | -8/Materials | Identified exit to Factory 265 | -8/Materials | Discovered exit to Factory (range 8) 269 | -8/Materials | Entered Factory 269 | -7/Factory | Evolved 2 slots: Utility x2 309 | -7/Factory | Build established: Hacker-Mutant 310 | -7/Factory | Identified exit to Factory 310 | -7/Factory | Discovered exit to Factory (range 7) 316 | -7/Factory | Entered another Factory area 316 | -6/Factory | Evolved 2 slots: Utility x2 332 | -6/Factory | Identified exit to Factory 378 | -6/Factory | Identified exit to Lower Caves 378 | -6/Factory | Discovered exit to Lower Caves (range 8) 409 | -6/Factory | Entered another Factory area 409 | -5/Factory | Evolved 2 slots: Utility x2 502 | -5/Factory | Identified exit to Factory 604 | -5/Factory | Core integrity fell below 50% 628 | -5/Factory | Core integrity fell below 20% 644 | -5/Factory | Identified exit to Upper Caves 644 | -5/Factory | Discovered exit to Upper Caves (range 16) 648 | -5/Factory | Destroyed by S-27 Virus with Autogun Last Messages --------------- 00513_ ALERT: Hostiles spotted, dispatching reinforcements to Terminal F018. 00514_ K-01 Serf pushes S-27 Virus. 00521_ K-01 Serf collects debris. 00526_ Penetrated by Slug. 00533_ Slug penetrates Wall. 00536_ K-01 Serf pushes G-50 Soldier. 00538_ Slug penetrates Wall. 00538_ K-01 Serf pushes G-50 Soldier. 00561_ T-07 Excavator destroyed. 00586_ Repair Station disabled. 00595_ Slammed into S-27 Virus. 00601_ Slammed into G-50 Soldier. 00602_ Slammed into G-67 Veteran. 00603_ Slammed into G-50 Soldier. 00615_ S-27 Virus destroyed. 00628_ Critical hit (Burn: +37). 00632_ M-13 Machinist repairs S-27 Virus. 00637_ K-01 Serf cleans the Matter Pump. 00644_ EXIT=FOUND: UPPER CAVES Map ----- +----------------------------------------------------+ | ######## """ """ """ """ #???????????# #?? | | ! R """ """ """ ##???????????# #?? | | """ """ """ """ #????????????# #?? | | #????????????# #?? | | *% """ """ """ """ #????????????# ??? | | """ """ """ """ #????????????? ??? | | ###/##### """ """ """ """ #????????????? ??? | | # # #?????????????#??? | | ###* + % ! #????????????????? | | ??# """####%########## #????????????????? | | ??# """#??#%#????????# s #????????????????? | | ??# """#??#%#????????# #????????????????? | | ??# ####+########## #????????????????? | | ??# """## [ # +????????????????? | | ??# """## # #????????????????? | | ??# """?# # #????????????????? | | ??# ??# # #????????????????? | | ??# ???# = # #????????????????? | | ??######???#%"""" # #????????????????? | | ???????????# """" "" # u#????????????????? | | ???????????# """" """ # #????????????????? | | ???????????# """" S" # #????????????????? | | ???????????# """" """ + #????????????????? | | ???????????# """" """ # #????????????????? | | ???????????# ??# #????????????????? | | ???????????###########??#@ R #????????????????? | | ????????????????????????# #????????????????? | | ???????????????????????? #???????????????? | | ???????????????????????? #???????????????? | | ???????????????????????# Y #???????????????? | | ???????????????????????# u#???????????????? | | ???????????????????????# > u ??????????????? | | ???????????????????????# # ?????????????? | | ???????????????????????# #?u ???????????? | | ???????????????????????# #?? ???????????? | | ???????????????????????# #???????????????? | | ???????????????????????### ###???????????????? | | ?????????????????????????? #?????????????????? | | ?????????????????????????? #?????????????????? | | ??????????????????????????R ???????????????????? | | ?????????????????????????? ?????????????????????? | | ?????????????????????????????????????????????????? | | ?????????????????????????????????????????????????? | | ?????????????????????????????????????????????????? | | ?????????????????????????????????????????????????? | | ?????????????????????????????????????????????????? | | ?????????????????????????????????????????????????? | | ?????????????????????????????????????????????????? | | ?????????????????????????????????????????????????? | | ?????????????????????????????????????????????????? | +----------------------------------------------------+ Best States ------------- Heat Dissipation 40 Energy Generation 5 Energy Capacity 100 Matter Stores 300 Matter Capacity 300 Sight Range 16 Terrain Scan Density 10 Resistance: KI 35 Resistance: TH 35 Resistance: EX 35 Resistance: EM 35 Resistance: I 35 Resistance: S 35 Resistance: P 35 Evasion (%) 50 Offensive Hacking 20 Item Schematics ----------------- None Robot Schematics ------------------ None Fabricated ------------ Nothing Alien Tech Used ----------------- None Achievements -------------- None Challenges ------------ None Game ------ Seed MetafieldCoolingBeam Manual? 0 Play Time 00:16:03 Cumulative 160.7 hours Start 2023.11.02 @ 03:17:03 End 2023.11.02 @ 03:31:20 Sessions 1 Manual Loads 0 Difficulty Explorer Special Mode None Game No. 118 Rogue 109 Adventurer 0 Explorer 9 Win Type - Total 2 Types 2/0/0/0/0/0/0/0/0 Lore% 58 Gallery% 68 Achievement% 48 Wizard Run 0 Options --------- ASCII 0 Keyboard 0 Movement Mouse Keybinds 1 Fullscreen 1 Font 18/TerminusBold Map View 76x50 Tactical HUD 1 Map Filters NONE Filters NONE Steam 1 RUN: 13d2c847-179e-4bc3-930a-ebf71bdcb5eb